Cogmind - Beta 16 @@@ ROGUE MODE // 2025.10.22 @ 11:42:35 Player: Thqwib-Linux Result: Destroyed by EZ-STN(j) with Overtuned Pulse Rifle Performance ------------- Evolutions (0) 0 Regions Visited (3) 600 Robots Destroyed (3) 15 Value Destroyed (120) 120 Prototype IDs (0) 0 Alien Tech Used (0) 0 Bonus (800) 800 TOTAL SCORE: 1535 Bonus ------- Registered with UFD 300 Met Optimus in HQ 500 Cogmind --------- Core Integrity 0/250 Matter 300/300 Energy 119/125 System Corruption 0% Temperature Cool (22) Movement Walking (120) Location -9/Scraptown Parts ------- > --- POWER (1) -------- Light Ion Engine > --- PROPULSION (2) --- Flexi-carbon Leg Flexi-carbon Leg > --- UTILITY (2) ------ Improved Heat Sink Large Storage Unit > --- WEAPON (2) ------- Subdweller Laser CPS Tube > --- INVENTORY (15) --- Improved Ion Engine Light Nuclear Core Arachnoskeleton Scrap Suit Surveybot 17 Chip Battle Cannon CPS Tube (2) Heavy Hammer DRS Beacon (Ready) Peak State ------------ > --- POWER ------------ Light Ion Engine > --- PROPULSION ------- Flexi-carbon Leg Flexi-carbon Leg > --- UTILITY ---------- High-capacity Storage Unit Improved Signal Interpreter > --- WEAPON ----------- Subdweller Laser CPS Tube > --- INVENTORY -------- Improved Ion Engine Light Nuclear Core Arachnoskeleton Scrap Suit Improved Heat Sink Surveybot 17 Chip Battle Cannon CPS Tube Heavy Hammer [Rating: 25] Favorites ----------- Power Light Ion Engine Engine Light Ion Engine Propulsion Flexi-carbon Leg Leg Flexi-carbon Leg Wheel Subdweller Monowheel Utility Improved Signal Interpreter Device Improved Heat Sink Storage High-capacity Storage Unit Processor Improved Signal Interpreter Protection Scrap Shield Weapon Subdweller Laser Energy Gun Subdweller Laser Ballistic Gun Assault Rifle Special Weapon CPS Tube Build | -11 -10 -10 -9 ------- Run | Yrd Mat Sub Scr Slots Evolved . | . . . . Power . | . . . . Propulsion . | . . . . Utility . | . . . . Weapon . | . . . . Parts Attached 14 | . 1 7 6 Power 1 | . . 1 . Engine 1 | . . 1 . Core . | . . . . Reactor . | . . . . Propulsion 4 | . . 2 2 Treads . | . . . . Leg 2 | . . . 2 Wheel 2 | . . 2 . Hover . | . . . . Flight . | . . . . Utility 5 | . . 2 3 Device 1 | . . 1 . Storage 2 | . . . 2 Processor 1 | . . . 1 Hackware . | . . . . Protection 1 | . . 1 . Artifact . | . . . . Weapon 4 | . 1 2 1 Energy Gun 1 | . . 1 . Energy Cannon . | . . . . Ballistic Gun 2 | . 1 1 . Ballistic Cannon . | . . . . Launcher . | . . . . Special Weapon 1 | . . . 1 Impact Weapon . | . . . . Slashing Weapon . | . . . . Piercing Weapon . | . . . . Special Melee Weapon . | . . . . Unidentified Prototypes . | . . . . Parts Lost 3 | . . 2 1 Power . | . . . . Propulsion 1 | . . 1 . Utility 2 | . . 1 1 Weapon . | . . . . Highest Loss Streak 2 | . . 2 1 To Critical Strikes . | . . . . Average Backups 5 | 5 3 3 5 Power 1 | 1 1 1 1 Propulsion . | 3 . . 1 Utility 1 | . . . 1 Weapon 1 | 1 1 1 1 Tool/Special . | . . . . Unused Backups 11 | . . 3 8 Power 4 | . . 2 2 Propulsion 1 | . . . 1 Utility 2 | . . . 2 Weapon 3 | . . 1 2 Tool/Special 1 | . . . 1 Average Slot Usage (%) 88 | . 85 84 89 Engine 14 | . 14 14 14 Leg 17 | . 28 13 17 Wheel 5 | . . 13 5 Device 6 | . . 8 6 Storage 7 | . 14 2 7 Processor 7 | . . . 8 Energy Gun 14 | . 16 14 14 Ballistic Gun 3 | . 12 14 1 Special Weapon 9 | . . . 12 Peak Build Rating 25 | 6 6 13 25 Average Rating 18 | 6 6 10 19 On Entrance 7 | 6 6 6 13 Avg Prop Armor Cover (%) 6 | . . 6 . Naked Turns . | . . . . Heaviest Build 48 | 12 13 26 48 Greatest Support 40 | 20 20 40 40 Greatest Overweight (x) 1 | . . 1 1 Average Overweight (x) . | . . . . Largest Inventory Capacity 20 | 8 8 8 20 Average Capacity 11 | 8 8 5 13 Most Carried 13 | 5 5 6 13 Average Carried 7 | 4 4 4 8 Final Capacity 15 | 8 8 5 15 Final Carried 12 | 2 5 5 12 Class Distribution -------------------- 93% | Mutant 6% | Scavenger-Mutant Dominant Class ---------------- Mutant | -10/Materials Scavenger-Mutant | -10/Subcaves Mutant | -9/Scraptown Resources | -11 -10 -10 -9 ----------- Run | Yrd Mat Sub Scr Matter Collected 430 | 200 13 122 95 Remotely . | . . . . Salvage Created 157 | . . 157 . Parts 10 | . . 10 . Haulers Intercepted . | . . . . Recyclers Shooed 1 | . 1 . . Parts Field Recycled . | . . . . Retrieved Matter . | . . . . Parts Self-Destructed . | . . . . Prevented . | . . . . Parts Restored . | . . . . Kills | -11 -10 -10 -9 ------- Run | Yrd Mat Sub Scr Combat Hostiles Destroyed 3 | . . 3 . Guns 3 | . . 3 . Classes Destroyed 1 | . . 1 . Subdweller 3 | . . 3 . Best Kill Streak 2 | . . 2 . Combat Bots Only 2 | . . 2 . Max Kills in Single Turn 1 | . . 1 . Gunslinging . | . . . . Exploded . | . . . . Melee . | . . . . Uniques/NPCs Destroyed . | . . . . Combat | -11 -10 -10 -9 -------- Run | Yrd Mat Sub Scr Hostile Shots Fired 68 | . . 43 25 Missed 18 | . . 10 8 Hits 50 | . . 33 17 Melee 3 | . . . 3 Projectile 47 | . . 33 14 Damage Taken 1082 | . 8 702 372 Core 263 | . . 80 183 Absorbed by Shields . | . . . . Core Remaining (%) 100 | 100 . . . Volleys Fired 27 | . 2 24 1 Largest 2 | . 2 2 1 Hottest 80 | . 80 60 . Shots Fired 53 | . 4 48 1 Gun 52 | . 4 48 . Cannon . | . . . . Launcher . | . . . . Special 1 | . . . 1 Kinetic 25 | . 1 24 . Thermal 27 | . 3 24 . Explosive . | . . . . Electromagnetic . | . . . . Robot Hit Streak 7 | . 3 7 3 Robot Miss Streak 2 | . 1 2 . Penetration Max . | . . . . Secondary Targets . | . . . . Shots Hit Robots 40 | . 3 36 1 Core Hits 6 | . . 6 . Critical Kills . | . . . . Critical Parts Destroyed . | . . . . Critical Strikes . | . . . . Melee Attacks . | . . . . Impact . | . . . . Slashing . | . . . . Piercing . | . . . . Sneak Attacks . | . . . . Combat Hostiles . | . . . . Follow-up Attacks . | . . . . Damage Inflicted 321 | . 43 278 . Guns 316 | . 38 278 . Cannons . | . . . . Explosions . | . . . . Melee . | . . . . Ramming 5 | . 5 . . Kinetic 159 | . 15 144 . Thermal 157 | . 23 134 . Explosive . | . . . . Electromagnetic . | . . . . Impact . | . . . . Slashing . | . . . . Piercing . | . . . . Highest Corruption . | . . . . Average Corruption . | . . . . Corruption Purged . | . . . . Corruption Blocked . | . . . . Overload Shots . | . . . . Overflow Damage . | . . . . Projectiles . | . . . . Explosions . | . . . . Melee . | . . . . Knockbacks . | . . . . Impact . | . . . . Kinetic . | . . . . Secondary . | . . . . Self-Inflicted Damage . | . . . . Shots . | . . . . Rammed . | . . . . Targets Rammed 2 | . 2 . . Kicked 2 | . 2 . . Crushed . | . . . . Highest Temperature 24 | . 24 . . Average Temperature 13 | . 13 . . Received Heat Transfer 174 | . 6 18 150 Siege Activations . | . . . . Martial Activations . | . . . . Shielding Activations . | . . . . Robots Disrupted . | . . . . Combat Hostiles . | . . . . Robots Corrupted . | . . . . Combat Hostiles . | . . . . Parts Fried . | . . . . Impact Corruptions . | . . . . Robots Melted . | . . . . Combat Hostiles . | . . . . Parts Melted 1 | . . 1 . Heat Transferred 350 | . 50 300 . Parts Sabotaged . | . . . . Parts Stolen . | . . . . Parts Stripped . | . . . . Power Chain Reactions . | . . . . Alert | -11 -10 -10 -9 ------- Run | Yrd Mat Sub Scr Maximum Alert Level . | . . . . Low Security (%) 100 | 100 100 . . Level 1 . | . . . . Level 2 . | . . . . Level 3 . | . . . . Level 4 . | . . . . Level 5 . | . . . . High Security . | . . . . Max Security . | . . . . Peak Influence 8 | . 8 . . Initial . | . . . . Average . | . . . . Influence Increases 8 | . 8 . . Successful Hack 8 | . 8 . . Influence Decreases 8 | . 8 . . Time Decay 8 | . 8 . . Squads Dispatched . | . . . . Investigation . | . . . . Extermination . | . . . . Reinforcement . | . . . . Assault . | . . . . Garrison . | . . . . Intercept . | . . . . Searches Triggered . | . . . . Construction Impeded . | . . . . Haulers Reinforced . | . . . . Active Scanning Responses . | . . . . Cargo Convoy Interrupts . | . . . . Stealth | -11 -10 -10 -9 --------- Run | Yrd Mat Sub Scr Distress Signals . | . . . . Communications Jammed . | . . . . Distress Signals . | . . . . Times Spotted 19 | . 1 8 10 Peak Tracking Total 8 | . 1 3 8 Tactical Retreats . | . . . . Traps | -11 -10 -10 -9 ------- Run | Yrd Mat Sub Scr Traps Triggered . | . . . . Indirectly . | . . . . Trap Hack Attempts . | . . . . Triggered . | . . . . Disarmed . | . . . . Reprogrammed . | . . . . Reused . | . . . . Traps Extracted . | . . . . Installed . | . . . . Triggered . | . . . . Machines | -11 -10 -10 -9 ---------- Run | Yrd Mat Sub Scr Machines Disabled . | . . . . Max in Single Turn . | . . . . Machines Repaired . | . . . . Machines Dismantled . | . . . . Machines Sabotaged . | . . . . Overloaded Fab Kills . | . . . . Hacking | -11 -10 -10 -9 --------- Run | Yrd Mat Sub Scr Machines Accessed 7 | . 1 . 6 Terminals 1 | . 1 . . Fabricators . | . . . . Repair Stations . | . . . . Recycling Units . | . . . . Scanalyzers . | . . . . Garrison Access . | . . . . Total Hacks 54 | . 2 . 52 Successful 54 | . 2 . 52 Failed . | . . . . Catastrophic . | . . . . Database Lockouts . | . . . . Manual 2 | . 2 . . Terminals 2 | . 2 . . Fabricators . | . . . . Repair Stations . | . . . . Recycling Units . | . . . . Scanalyzers . | . . . . Garrison Access . | . . . . Terminal Hacks 53 | . 1 . 52 Record 52 | . . . 52 Robot Analysis 1 | . 1 . . Fabricator Hacks . | . . . . Repair Station Hacks . | . . . . Recycling Unit Hacks . | . . . . Scanalyzer . | . . . . Garrison Access Hacks . | . . . . Unauthorized Hacks 1 | . 1 . . Terminals 1 | . 1 . . Botnet 1 | . 1 . . Fabricators . | . . . . Repair Stations . | . . . . Recycling Units . | . . . . Scanalyzers . | . . . . Garrison Access . | . . . . Data Cores Recovered 1 | . 1 . . Used 1 | . 1 . . Hacking Detections . | . . . . Full Trace Events . | . . . . Feedback Events . | . . . . Feedback Blocked . | . . . . Robot Schematics Acquired . | . . . . Robots Built . | . . . . Authchips . | . . . . Time . | . . . . Total Robot Build Rating . | . . . . Part Schematics Acquired . | . . . . Parts Built . | . . . . Authchips . | . . . . Time . | . . . . Total Part Build Rating . | . . . . Part Studies Acquired . | . . . . Parts Repaired . | . . . . Time . | . . . . Parts Recycled . | . . . . Recycled Matter . | . . . . Retrieved Matter . | . . . . Retrieved Components . | . . . . Parts Scanalyzed . | . . . . Part Schematics Acquired . | . . . . Parts Damaged . | . . . . Bothacking | -11 -10 -10 -9 ------------ Run | Yrd Mat Sub Scr Used RIF Installer . | . . . . Robots Hacked . | . . . . Non-combat . | . . . . Combat . | . . . . Robot Hacks Applied . | . . . . Relay Couplers Released . | . . . . Fabnet Peak Effective % . | . . . . Robots Rewired . | . . . . Allies Hacked . | . . . . Hacks Repelled . | . . . . Allies | -11 -10 -10 -9 -------- Run | Yrd Mat Sub Scr Total Allies . | . . . . Largest Group . | . . . . Highest-Rated Group . | . . . . Highest-Rated Ally . | . . . . Total Orders . | . . . . Ally Attacks . | . . . . Total Damage . | . . . . Kills . | . . . . Allies Corrupted . | . . . . Allies Melted 1 | . . . 1 Intel | -11 -10 -10 -9 ------- Run | Yrd Mat Sub Scr Active Infowar (turns) . | . . . . Robot Analysis Total 1 | . 1 . . Derelict Logs Recovered 2 | . . . 2 Drone Launches . | . . . . Drone Recoveries . | . . . . Exploration | -11 -10 -10 -9 ------------- Run | Yrd Mat Sub Scr Turns Passed 2557 | 2 130 326 2099 Spaces Moved 1736 | 1 85 185 1465 Core . | . . . . Treads . | . . . . Legs 919 | 1 85 49 784 Wheels 817 | . . 136 681 Hover . | . . . . Flight . | . . . . Fastest Speed 110 | 120 120 110 110 Average Speed 138 | 120 120 121 141 Slowest Speed 190 | 120 120 190 190 Overloaded Moves . | . . . . Propulsion Burnouts . | . . . . Robots Hopped . | . . . . Potential Cave-ins . | . . . . Cave-ins Triggered . | . . . . Exploration Rate (%) 32 | 2 23 19 87 Regions Visited 3 Branch Regions 2 Pre-discovered Areas . | . . . . Known Exits Taken . | . . . . Unknown Exits Taken 3 | 1 1 1 . Scrap Searched 4 | . . . 4 Spaces Dug . | . . . . Terrain Destroyed . | . . . . Melee . | . . . . Projectile . | . . . . AOE . | . . . . Terrain Rammed . | . . . . Walls Destroyed . | . . . . Machines Disabled . | . . . . Actions | -11 -10 -10 -9 --------- Run | Yrd Mat Sub Scr Total 1836 | 4 108 238 1486 Wait 24 | . 16 8 . Move 1733 | . 84 184 1465 Hop . | . . . . Pick Up 12 | . 3 2 7 Fast Attach 10 | . . 4 6 Attach 4 | . . 3 1 Detach 1 | . . 1 . Swap 3 | . 1 1 1 Drop 15 | 4 . 6 5 Fire 27 | . 2 24 1 Melee . | . . . . Ram . | . . . . Kick 2 | . 2 . . Crush . | . . . . Escape Stasis . | . . . . Rewire . | . . . . Trap . | . . . . Miscellaneous 5 | . . 5 . Route ------- -11/Scrapyard -10/Materials -10/Subcaves -9/Scraptown (discovered 2 exits: *Fac x2) History --------- Turn | Location | Event 3 | -11/Scrapyard | Discovered new exit (range 0) 3 | -11/Scrapyard | Entered Materials 4 | -10/Materials | Met a group of wandering Federalists 104 | -10/Materials | Discovered new exit (range 15) 133 | -10/Materials | Entered Subcaves 133 | -10/Subcaves | Accompanied by 1 ally 134 | -10/Subcaves | Continued accompanying wandering Federalists (2) 222 | -10/Subcaves | A Subdweller sparked back to life 222 | -10/Subcaves | A Subdweller sparked back to life 222 | -10/Subcaves | A Subdweller sparked back to life 309 | -10/Subcaves | Found Prototype Leg 392 | -10/Subcaves | Wandering Federalist uncovered a shortcut to Scraptown 459 | -10/Subcaves | Entered Scraptown 644 | -9/Scraptown | Heard Great Nut preacher, LISTEN AND RECITE! 744 | -9/Scraptown | Build established: Mutant 797 | -9/Scraptown | Visited Awakened 838 | -9/Scraptown | Visited Fellowship of the Rings 872 | -9/Scraptown | Visited Cyclists 906 | -9/Scraptown | Visited SPCMW 1091 | -9/Scraptown | Scanned Subdweller tech in exchange for log data 1094 | -9/Scraptown | Learned 8 Research zone layouts 1095 | -9/Scraptown | Learned location of 1 exit from Factory 1110 | -9/Scraptown | Discovered new exit (range 7) 1204 | -9/Scraptown | Visited Supply Room 1240 | -9/Scraptown | Visited Supply Room 1270 | -9/Scraptown | Visited Cave Peace 1314 | -9/Scraptown | Visited UFD Registry 1354 | -9/Scraptown | Registered with UFD as "Slugroller" 1379 | -9/Scraptown | Visited DA-N13 Charitable Foundation 1384 | -9/Scraptown | Found DCF Scrap (28 items) 1480 | -9/Scraptown | Visited Cartography Club 1548 | -9/Scraptown | Found Surveybot 17 Chip 1815 | -9/Scraptown | Visited Abandonware Association 1948 | -9/Scraptown | Discovered new exit (range 5) 1963 | -9/Scraptown | Identified exit to Factory 2005 | -9/Scraptown | Found Scrap Suit 2142 | -9/Scraptown | Visited Science Testing Area 2170 | -9/Scraptown | Visited Derelict Rescue Squad 2214 | -9/Scraptown | Found DRS Beacon 2278 | -9/Scraptown | Met Optimus 2278 | -9/Scraptown | Accepted into 0bPrime 2518 | -9/Scraptown | Civil war broke out across Scraptown 2540 | -9/Scraptown | Attached CPS modules to CD-Q3K(j). 2544 | -9/Scraptown | Core integrity fell below 50% 2552 | -9/Scraptown | Core integrity fell below 20% 2558 | -9/Scraptown | Destroyed by EZ-STN(j) with Overtuned Pulse Rifle Last Messages --------------- 02540_ JQ-K35(j) destroyed. 02540_ CPS modules attach to CD-Q3K(j). 02541_ Penetrated by Slug. 02544_ TP-1YF(r) follow-up attacks with Ripteeth. 02545_ 38-47H(h): "I'm having second thoughts about this." 02545_ Slug penetrates CD-Q3K(j). 02546_ TP-1YF(r) follow-up attacks with Ripteeth. 02547_ Slug penetrates CD-Q3K(j). 02547_ Slug penetrates Earth. 02548_ Optimus Imp. VSS Leg ripped off. 02548_ TP-1YF(r) follow-up attacks with Ripteeth. 02549_ Bolt penetrates Machine. 02549_ Slug penetrates CD-Q3K(j). 02549_ CPS modules swiftly deploy to protect CD-Q3K(j) components. 02549_ CD-Q3K(j) destroyed. 02551_ Slug penetrates TP-1YF(r). 02551_ Imp. Signal Interpreter destroyed. 02552_ Bolt penetrates Optimus. 02553_ Acquired 15 matter. 02554_ Bolt penetrates Optimus. Map ----- +----------------------------------------------------+ | """""""""""""""""""" "## #????????????? | | ################"" "## #????????????? | | ##????????#"" "##############?????????? | | X"#????????#"" "## """"""""#?????????? | | "" ##????????#"" "## " " " "#?????????? | | "" X"#??????###"" "## "#?????????? | | " ######### #"" "## &"#?????????? | | "" "#?????????? | | "" "## ""#?????????? | | " ######### #"" "## " " " "#?????????? | | "" ""#??????###"" "## """"""""#?????????? | | "" ##????????#"" "##############?????????? | | X"#????????#"" ! "#??????????????????????? | | ##????????#"" %= "#???#??????????????????? | | ######???????###" "#??"""?????????????????? | | """"????????""""""""j "## """"#???????????????? | | """""""???"""""""""" x "&""#???????????????? | | ? *"## "#???????????????? | | ? gj="#?? #???????????????? | | = =!% #??? #???????????????? | | | !!%##?????????????????????? | | != #?????????????????????? | | """" ""???"""""" """" ##?????????????????????? | | ##??????????#### ###### #??????????????????????? | | ?????????????? ?????# #??????????????????????? | | ?????????????? ???????#[[@#??????????????????????? | | ?????????????# ???????#=[x#??????????????????????? | | ??????????????????????#*!!#??##??????????????????? | | ??????????????????????#h =#? #??????????????????? | | ??????????????????????# !%##""##"#####???????????? | | ??????????????????????# *! #???????????? | | ??????????????????????# ##???????????? | | ??????????????????????# [ #???????????? | | ?????????????????????## =[! #???????????? | | ?????????????????????#;![!=! #???????????? | | ?????????????????????##=[%%###########???????????? | | #######################=r*#####??????????????????? | | ""##"""##"""##"""##"|"#!=!""""#??????????????????? | | ""##" "##"""##"" ##" #p *"" "#??????????????????? | | %! 3 "#??????????????????? | | " "#??????????????????? | | """"#??????????????????? | | ""##"" ##"|"##!!$##""|## ######??????????????????? | | ""##"""##"""##"""##"""####???????????????????????? | | #######################??????????????????????????? | | ?????????????????????????????????????????????????? | | ?????????????????????????????????????????????????? | | ?????????????????????????????????????????????????? | | ?????????????????????????????????????????????????? | | ?????????????????????????????????????????????????? | +----------------------------------------------------+ Best States ------------- Heat Dissipation 39 Energy Generation 10 Energy Capacity 250 Matter Stores 300 Matter Capacity 300 Sight Range 16 Terrain Scan Density 10 Armor Coverage 800 Evasion (%) 55 Item Schematics ----------------- None Robot Schematics ------------------ None Fabricated ------------ Nothing Repaired ---------- Nothing Studied --------- None Alien Tech Used ----------------- None Achievements -------------- Civilization 2243 For Emergencies Only Ghost 'Em Link The Feds Strength In Numbers Survival Of The Most Covered Challenges ------------ None Game ------ Seed RemoteSegregatorPropulsion Manual? 0 Play Time 00:35:36 Cumulative 6.0 hours Start 2025.10.22 @ 11:02:59 End 2025.10.22 @ 11:42:35 Sessions 1 Manual Loads 0 Difficulty Rogue Special Mode None Game No. 7 Rogue 7 Adventurer 0 Explorer 0 Win Type - Total 0 Types 0/0/0/0/0/0/0/0/0/0 Lore% 22 Gallery% 15 Achievement% 16 Wizard Run 0 Options --------- Layout 0 ASCII 0 Keyboard 0 Movement Arrows Keybinds 0 Fullscreen 2 Font 18/X11 Map View 76x50 Zoom Use 0% Tactical HUD 1 Map Filters NONE Filters NONE Steam 1 RUN: 8d2c4849-5fbd-49c3-ac58-4ecc46e33f35